[Event "*** Titled Tuesday 3|2 Blitz"]
[Site "Chess.com"]
[Date "2016.02.02"]
[Round "4"]
[White "Dlugy"]
[Black "Gabrielian_Artur"]
[Result "1-0"]
[WhiteElo "2573"]
[BlackElo "2493"]
[TimeControl "180+2"]
[EndTime "11:51:29 PST"]
[Termination "Dlugy won by resignation"]

1. d4 {[%clk 0:03:01.9]} 1... Nf6 {[%clk 0:02:22.4]} 2. Bf4 {[%clk 0:03:02.9]}
2... g6 {[%clk 0:02:22.7]} 3. Nc3 {[%clk 0:03:02.9]} 3... Bg7 {[%clk 0:02:22.9]}
4. e4 {[%clk 0:03:03.6]} 4... d6 {[%clk 0:02:23.6]} 5. Qd2 {[%clk 0:03:04.9]}
5... O-O {[%clk 0:02:19.6]} 6. Bh6 {[%clk 0:03:05.4]} 6... e5 {[%clk 0:02:20.9]}
7. Bxg7 {[%clk 0:03:05.7]} 7... Kxg7 {[%clk 0:02:21.9]} 8. O-O-O {[%clk
0:03:06.4]} 8... exd4 {[%clk 0:02:22.1]} 9. Qxd4 {[%clk 0:03:07.5]} 9... Nc6
{[%clk 0:02:23.4]} 10. Qe3 {[%clk 0:03:08.5]} 10... Re8 {[%clk 0:02:24.2]} 11.
f3 {[%clk 0:03:09]} 11... Be6 {[%clk 0:02:24.1]} 12. Nge2 {[%clk 0:03:07.3]}
12... d5 {[%clk 0:02:13.8]} 13. Qc5 {[%clk 0:03:03]} 13... Nd7 {[%clk
0:02:08.6]} 14. Qa3 {[%clk 0:02:58]} 14... dxe4 {[%clk 0:02:06.8]} 15. Nxe4
{[%clk 0:02:59.2]} 15... Qe7 {[%clk 0:02:04.3]} 16. Qc3+ {[%clk 0:02:45.2]}
16... f6 {[%clk 0:02:00.3]} 17. Nf4 {[%clk 0:02:33.3]} 17... Nde5 {[%clk
0:01:59.5]} 18. Nxe6+ {[%clk 0:02:16.9]} 18... Qxe6 {[%clk 0:02:00.2]} 19. Kb1
{[%clk 0:02:17.5]} 19... Rad8 {[%clk 0:01:58]} 20. Bb5 {[%clk 0:02:18.4]} 20...
a6 {[%clk 0:01:45.3]} 21. Ba4 {[%clk 0:02:16.7]} 21... Qe7 {[%clk 0:01:25.9]}
22. Nc5 {[%clk 0:02:07.3]} 22... b5 {[%clk 0:01:00]} 23. Bb3 {[%clk 0:02:08.2]}
23... b4 {[%clk 0:00:56.7]} 24. Qe3 {[%clk 0:02:06.6]} 24... Rd6 {[%clk
0:00:57.6]} 25. Nxa6 {[%clk 0:01:31.3]} 25... Red8 {[%clk 0:00:58.4]} 26. Rde1
{[%clk 0:01:32.5]} 26... Nd4 {[%clk 0:00:20.9]} 27. Nxb4 {[%clk 0:01:25.5]}
27... Nf5 {[%clk 0:00:21.3]} 28. Qc3 {[%clk 0:01:18]} 28... Nh4 {[%clk
0:00:19.3]} 29. f4 {[%clk 0:01:08.8]} 29... Nxg2 {[%clk 0:00:20]} 30. fxe5
{[%clk 0:00:56.8]} 30... Nxe1 {[%clk 0:00:13.3]} 31. exd6 {[%clk 0:00:57.5]} 1-0

[Event "*** Titled Tuesday 3|2 Blitz"]
[Site "Chess.com"]
[Date "2016.02.02"]
[Round "4"]
[White "AnthonyWirig"]
[Black "stefanodinn"]
[Result "1-0"]
[WhiteElo "2523"]
[BlackElo "2130"]
[TimeControl "180+2"]
[EndTime "11:51:51 PST"]
[Termination "AnthonyWirig won by resignation"]

1. e4 {[%clk 0:03:01.4]} 1... e5 {[%clk 0:02:33.5]} 2. Nf3 {[%clk 0:03:00]} 2...
Nc6 {[%clk 0:02:32.1]} 3. Bc4 {[%clk 0:03:00.9]} 3... Bc5 {[%clk 0:02:31.4]} 4.
c3 {[%clk 0:03:01.8]} 4... Nf6 {[%clk 0:02:31.2]} 5. d4 {[%clk 0:03:03.3]} 5...
exd4 {[%clk 0:02:30.7]} 6. e5 {[%clk 0:03:05.2]} 6... d5 {[%clk 0:02:31.4]} 7.
Bb5 {[%clk 0:03:05.9]} 7... Ne4 {[%clk 0:02:32]} 8. cxd4 {[%clk 0:03:07.5]} 8...
Bb6 {[%clk 0:02:29.8]} 9. h3 {[%clk 0:03:08.5]} 9... O-O {[%clk 0:02:29.6]} 10.
O-O {[%clk 0:03:09.7]} 10... Bd7 {[%clk 0:02:30.1]} 11. Ba4 {[%clk 0:03:10.4]}
11... f6 {[%clk 0:02:21.5]} 12. Bb3 {[%clk 0:03:11.2]} 12... Be6 {[%clk
0:02:18]} 13. Nc3 {[%clk 0:03:12]} 13... Nxc3 {[%clk 0:02:15.6]} 14. bxc3 {[%clk
0:03:13.9]} 14... fxe5 {[%clk 0:02:16.3]} 15. dxe5 {[%clk 0:03:15.5]} 15... Kh8
{[%clk 0:02:15.1]} 16. Nd4 {[%clk 0:03:02.4]} 16... Nxd4 {[%clk 0:02:13.2]} 17.
cxd4 {[%clk 0:03:03.5]} 17... Qh4 {[%clk 0:02:04.4]} 18. Be3 {[%clk 0:02:56.7]}
18... c6 {[%clk 0:01:57.6]} 19. f4 {[%clk 0:02:49.4]} 19... Bf5 {[%clk
0:01:51.1]} 20. Bc2 {[%clk 0:02:39]} 20... Bxh3 {[%clk 0:01:41.5]} 21. f5 {[%clk
0:02:00.8]} 21... Bg4 {[%clk 0:01:03.7]} 22. Qe1 {[%clk 0:01:52.8]} 22... Qh5
{[%clk 0:00:58.8]} 23. Rf4 {[%clk 0:01:31.8]} 23... g5 {[%clk 0:00:43.6]} 24.
Rf1 {[%clk 0:01:22.4]} 24... Rae8 {[%clk 0:00:36.4]} 25. Qg3 {[%clk 0:01:15.8]}
25... h6 {[%clk 0:00:30.7]} 26. a4 {[%clk 0:01:15.1]} 26... Be2 {[%clk 0:00:20]}
27. Rf2 {[%clk 0:01:12.9]} 27... Qg4 {[%clk 0:00:20.6]} 28. Qxg4 {[%clk
0:01:10.1]} 28... Bxg4 {[%clk 0:00:20.9]} 29. e6 {[%clk 0:01:06.8]} 29... Kg7
{[%clk 0:00:19.9]} 30. Rb1 {[%clk 0:01:04.6]} 30... Re7 {[%clk 0:00:19.5]} 31.
Bd3 {[%clk 0:01:00.9]} 31... Bh5 {[%clk 0:00:15.8]} 32. g3 {[%clk 0:00:58.6]}
32... Bg4 {[%clk 0:00:16.5]} 33. Kg2 {[%clk 0:00:59.7]} 33... Bh5 {[%clk
0:00:17.3]} 34. Kh3 {[%clk 0:01:00.6]} 34... Be8 {[%clk 0:00:16.8]} 35. g4
{[%clk 0:01:01]} 35... Bd8 {[%clk 0:00:13.3]} 36. Kg2 {[%clk 0:01:01.5]} 36...
Rc7 {[%clk 0:00:13.9]} 37. Rc2 {[%clk 0:01:00.3]} 37... Bf6 {[%clk 0:00:13.8]}
38. Bf2 {[%clk 0:01:00.8]} 38... h5 {[%clk 0:00:14.3]} 39. Bg3 {[%clk
0:01:01.4]} 39... Re7 {[%clk 0:00:12.6]} 40. Bd6 {[%clk 0:01:01.7]} 1-0

[Event "*** Titled Tuesday 3|2 Blitz"]
[Site "Chess.com"]
[Date "2016.02.02"]
[Round "4"]
[White "tigra"]
[Black "Zkid"]
[Result "1-0"]
[WhiteElo "2398"]
[BlackElo "2486"]
[TimeControl "180+2"]
[EndTime "11:51:52 PST"]
[Termination "tigra won by resignation"]

1. e4 {[%clk 0:03:01.9]} 1... c5 {[%clk 0:02:58.8]} 2. Nf3 {[%clk 0:03:02.4]}
2... d6 {[%clk 0:02:58.9]} 3. d4 {[%clk 0:03:02.3]} 3... cxd4 {[%clk 0:03:00.1]}
4. Nxd4 {[%clk 0:03:04]} 4... Nf6 {[%clk 0:03:01.2]} 5. Nc3 {[%clk 0:03:04.7]}
5... a6 {[%clk 0:03:02.5]} 6. Bg5 {[%clk 0:03:05.8]} 6... e6 {[%clk 0:03:02]} 7.
f4 {[%clk 0:03:05.4]} 7... Be7 {[%clk 0:03:01.9]} 8. Qf3 {[%clk 0:03:05.5]} 8...
Qc7 {[%clk 0:03:02.5]} 9. O-O-O {[%clk 0:03:05.3]} 9... Nc6 {[%clk 0:03:01.7]}
10. Nxc6 {[%clk 0:02:59.9]} 10... bxc6 {[%clk 0:03:01.6]} 11. g4 {[%clk
0:02:56.4]} 11... e5 {[%clk 0:02:59]} 12. f5 {[%clk 0:02:55.5]} 12... Bb7 {[%clk
0:02:50.9]} 13. Bc4 {[%clk 0:02:55.7]} 13... d5 {[%clk 0:02:37.9]} 14. Bxf6
{[%clk 0:02:55.8]} 14... dxc4 {[%clk 0:02:27.4]} 15. Bxg7 {[%clk 0:02:49.1]}
15... Rg8 {[%clk 0:02:24.8]} 16. Bh6 {[%clk 0:02:49.7]} 16... Qa5 {[%clk
0:02:17.4]} 17. Bd2 {[%clk 0:02:47.6]} 17... Bb4 {[%clk 0:02:16.2]} 18. a3
{[%clk 0:02:44.5]} 18... Bxa3 {[%clk 0:02:09]} 19. Na2 {[%clk 0:02:43.5]} 19...
Bb4 {[%clk 0:02:09.7]} 20. Bxb4 {[%clk 0:02:42.1]} 20... Qxa2 {[%clk 0:02:10.7]}
21. Ba3 {[%clk 0:02:24]} 21... c5 {[%clk 0:01:58.7]} 22. Qe3 {[%clk 0:01:58.4]}
22... Rc8 {[%clk 0:01:45.7]} 23. h3 {[%clk 0:01:54.6]} 23... f6 {[%clk
0:01:38.2]} 24. Kd2 {[%clk 0:01:38.4]} 24... c3+ {[%clk 0:01:36.9]} 25. Kxc3
{[%clk 0:01:36.8]} 25... Rg7 {[%clk 0:01:29.2]} 26. Rd6 {[%clk 0:01:32.2]} 26...
Rd7 {[%clk 0:01:24.6]} 27. Rhd1 {[%clk 0:01:31.5]} 27... Rxd6 {[%clk 0:01:12.2]}
28. Rxd6 {[%clk 0:01:32.3]} 28... Qf7 {[%clk 0:01:13.8]} 29. Qh6 {[%clk
0:01:23.2]} 29... Rc6 {[%clk 0:01:11.1]} 30. Rxc6 {[%clk 0:01:19.5]} 30... Bxc6
{[%clk 0:01:12.6]} 31. Qe3 {[%clk 0:01:20.1]} 31... Qa7 {[%clk 0:01:02.1]} 32.
Bxc5 {[%clk 0:01:16.8]} 32... Qb7 {[%clk 0:01:03.1]} 33. Qd3 {[%clk 0:01:11.1]}
33... Qc7 {[%clk 0:00:24.4]} 34. Qc4 {[%clk 0:01:11.1]} 34... Bb5 {[%clk
0:00:18.6]} 35. Qe6+ {[%clk 0:01:10.9]} 35... Kd8 {[%clk 0:00:19.8]} 36. b4
{[%clk 0:01:08.7]} 36... Qc6 {[%clk 0:00:16.8]} 37. Qg8+ {[%clk 0:01:09.6]}
37... Kc7 {[%clk 0:00:12.4]} 38. Qxh7+ {[%clk 0:01:10.7]} 38... Kb8 {[%clk
0:00:10.6]} 39. Qg8+ {[%clk 0:01:11.5]} 39... Qc8 {[%clk 0:00:10.3]} 40. Qxc8+
{[%clk 0:01:11.6]} 40... Kxc8 {[%clk 0:00:11.3]} 41. Be7 {[%clk 0:01:13.2]}
41... Bf1 {[%clk 0:00:10.8]} 42. Bxf6 {[%clk 0:01:11.3]} 42... Bxh3 {[%clk
0:00:12]} 43. g5 {[%clk 0:01:12.6]} 43... Bg2 {[%clk 0:00:12.5]} 44. Kd3 {[%clk
0:01:13.3]} 1-0

[Event "*** Titled Tuesday 3|2 Blitz"]
[Site "Chess.com"]
[Date "2016.02.02"]
[Round "4"]
[White "VMikhalevski"]
[Black "Boryboy"]
[Result "0-1"]
[WhiteElo "2508"]
[BlackElo "2497"]
[TimeControl "180+2"]
[EndTime "11:52:18 PST"]
[Termination "Boryboy won on time"]

1. Nf3 {[%clk 0:03:01.9]} 1... Nf6 {[%clk 0:03:00.3]} 2. g3 {[%clk 0:03:01.6]}
2... e6 {[%clk 0:02:51.5]} 3. Bg2 {[%clk 0:03:01.1]} 3... d5 {[%clk 0:02:51]} 4.
O-O {[%clk 0:03:00.7]} 4... Be7 {[%clk 0:02:51.9]} 5. c4 {[%clk 0:03:00.5]} 5...
O-O {[%clk 0:02:50.6]} 6. b3 {[%clk 0:03:01.1]} 6... a5 {[%clk 0:02:50.9]} 7.
Nc3 {[%clk 0:02:51.7]} 7... d4 {[%clk 0:02:51.3]} 8. Nb5 {[%clk 0:02:52.2]} 8...
Nc6 {[%clk 0:02:52.4]} 9. Bb2 {[%clk 0:02:52]} 9... e5 {[%clk 0:02:47.3]} 10. e3
{[%clk 0:02:52.5]} 10... Bc5 {[%clk 0:02:45.4]} 11. Nxe5 {[%clk 0:02:10.6]}
11... Nxe5 {[%clk 0:02:41]} 12. exd4 {[%clk 0:02:11.4]} 12... Nd3 {[%clk
0:02:37]} 13. Bc3 {[%clk 0:01:48.4]} 13... Be7 {[%clk 0:02:32]} 14. Qf3 {[%clk
0:01:40.8]} 14... Nb4 {[%clk 0:02:26.1]} 15. d5 {[%clk 0:01:39.2]} 15... c6
{[%clk 0:02:18.7]} 16. dxc6 {[%clk 0:01:39.3]} 16... bxc6 {[%clk 0:02:14.3]} 17.
Nd4 {[%clk 0:01:31.7]} 17... Bd7 {[%clk 0:02:09]} 18. a3 {[%clk 0:01:27.4]}
18... Bg4 {[%clk 0:01:22.7]} 19. Qe3 {[%clk 0:01:14.3]} 19... c5 {[%clk
0:01:08.8]} 20. axb4 {[%clk 0:01:10.1]} 20... cxd4 {[%clk 0:01:07.7]} 21. Bxd4
{[%clk 0:01:08.1]} 21... Bxb4 {[%clk 0:00:39.8]} 22. Bxa8 {[%clk 0:01:05.2]}
22... Qxa8 {[%clk 0:00:40.8]} 23. f3 {[%clk 0:01:05.5]} 23... Be6 {[%clk
0:00:41.1]} 24. Bc5 {[%clk 0:01:00.8]} 24... Bxc5 {[%clk 0:00:32.3]} 25. Qxc5
{[%clk 0:01:01.4]} 25... Qb8 {[%clk 0:00:33.5]} 26. Ra3 {[%clk 0:00:50.8]} 26...
h5 {[%clk 0:00:31.3]} 27. Qxa5 {[%clk 0:00:49.7]} 27... h4 {[%clk 0:00:32.5]}
28. f4 {[%clk 0:00:31.7]} 28... h3 {[%clk 0:00:30.9]} 29. Qe5 {[%clk 0:00:27.7]}
29... Qb7 {[%clk 0:00:31.1]} 30. Qe2 {[%clk 0:00:20.8]} 30... Bg4 {[%clk
0:00:29.1]} 31. Qf2 {[%clk 0:00:21.9]} 31... Re8 {[%clk 0:00:30.8]} 32. d4
{[%clk 0:00:06]} 32... Re2 {[%clk 0:00:31.2]} 33. d5 {[%clk 0:00:06.1]} 33...
Rxf2 {[%clk 0:00:32]} 34. Rxf2 {[%clk 0:00:07.3]} 34... Ne4 {[%clk 0:00:33.6]}
0-1

[Event "*** Titled Tuesday 3|2 Blitz"]
[Site "Chess.com"]
[Date "2016.02.02"]
[Round "4"]
[White "Cecile_Haussernot"]
[Black "madalin18"]
[Result "1-0"]
[WhiteElo "2176"]
[BlackElo "2001"]
[TimeControl "180+2"]
[EndTime "11:52:19 PST"]
[Termination "Cecile_Haussernot won by resignation"]

1. e4 {[%clk 0:03:00.3]} 1... c5 {[%clk 0:02:59]} 2. Nf3 {[%clk 0:03:00.5]} 2...
d6 {[%clk 0:02:59.7]} 3. d4 {[%clk 0:03:00.8]} 3... cxd4 {[%clk 0:03:00.5]} 4.
Nxd4 {[%clk 0:03:01.9]} 4... Nf6 {[%clk 0:03:01.5]} 5. Nc3 {[%clk 0:03:02.2]}
5... a6 {[%clk 0:03:02.8]} 6. h3 {[%clk 0:03:02.9]} 6... b5 {[%clk 0:02:44.1]}
7. g4 {[%clk 0:02:56.6]} 7... Bb7 {[%clk 0:02:44]} 8. Bg2 {[%clk 0:02:55.8]}
8... h6 {[%clk 0:02:40]} 9. O-O {[%clk 0:02:52.2]} 9... e6 {[%clk 0:02:24.7]}
10. Re1 {[%clk 0:02:33.3]} 10... Nfd7 {[%clk 0:02:24.5]} 11. f4 {[%clk
0:02:29.1]} 11... e5 {[%clk 0:02:10.7]} 12. Nf3 {[%clk 0:02:23]} 12... Nc6
{[%clk 0:02:04.8]} 13. Nd5 {[%clk 0:02:15.3]} 13... exf4 {[%clk 0:01:52.3]} 14.
Bxf4 {[%clk 0:02:13]} 14... Nce5 {[%clk 0:01:52.9]} 15. Nd4 {[%clk 0:02:10.8]}
15... Rc8 {[%clk 0:01:38.1]} 16. a4 {[%clk 0:02:05.6]} 16... Bxd5 {[%clk
0:01:32.4]} 17. exd5 {[%clk 0:02:00.8]} 17... Qb6 {[%clk 0:01:33.4]} 18. axb5
{[%clk 0:01:58.1]} 18... axb5 {[%clk 0:01:33.1]} 19. Be3 {[%clk 0:01:58]} 19...
Qb7 {[%clk 0:01:32.5]} 20. Nc6 {[%clk 0:01:58.4]} 20... Ra8 {[%clk 0:01:19.7]}
21. Bd4 {[%clk 0:01:52.9]} 21... f6 {[%clk 0:01:14.2]} 22. Qd3 {[%clk
0:01:39.4]} 22... Kf7 {[%clk 0:01:13.8]} 23. Qf5 {[%clk 0:01:35.1]} 23... g6
{[%clk 0:00:43.3]} 24. Qe6+ {[%clk 0:01:34.3]} 24... Kg7 {[%clk 0:00:44.6]} 25.
Rxa8 {[%clk 0:01:08.2]} 25... Qxa8 {[%clk 0:00:43.7]} 26. Rf1 {[%clk 0:01:06.5]}
26... Kh7 {[%clk 0:00:34.9]} 27. Nxe5 {[%clk 0:00:59]} 27... Nxe5 {[%clk
0:00:35.3]} 28. Bxe5 {[%clk 0:00:49.2]} 28... Qa7+ {[%clk 0:00:17.6]} 29. Kh2
{[%clk 0:00:46.3]} 29... dxe5 {[%clk 0:00:18.6]} 30. Rxf6 {[%clk 0:00:46.8]}
30... Bg7 {[%clk 0:00:15.2]} 31. Rf7 {[%clk 0:00:40.4]} 31... Qe3 {[%clk
0:00:15.6]} 32. d6 {[%clk 0:00:35.9]} 32... Rg8 {[%clk 0:00:14.9]} 33. d7 {[%clk
0:00:33.6]} 33... Qd4 {[%clk 0:00:11.8]} 34. c3 {[%clk 0:00:26.8]} 34... Qd2
{[%clk 0:00:10.2]} 35. Qe7 {[%clk 0:00:24.4]} 35... Qd5 {[%clk 0:00:07.4]} 36.
Bxd5 {[%clk 0:00:24.5]} 1-0

[Event "*** Titled Tuesday 3|2 Blitz"]
[Site "Chess.com"]
[Date "2016.02.02"]
[Round "4"]
[White "JusticeBot"]
[Black "Winehouse83"]
[Result "1-0"]
[WhiteElo "2424"]
[BlackElo "2293"]
[TimeControl "180+2"]
[EndTime "11:52:30 PST"]
[Termination "JusticeBot won by checkmate"]

1. e4 {[%clk 0:02:52.4]} 1... e5 {[%clk 0:02:59.8]} 2. Nf3 {[%clk 0:02:52.3]}
2... Nc6 {[%clk 0:02:59.8]} 3. Bc4 {[%clk 0:02:53.9]} 3... Bc5 {[%clk
0:02:59.8]} 4. b4 {[%clk 0:02:55.4]} 4... Bxb4 {[%clk 0:02:59.8]} 5. c3 {[%clk
0:02:57.1]} 5... Be7 {[%clk 0:02:59.1]} 6. d4 {[%clk 0:02:58.6]} 6... d6 {[%clk
0:02:42.8]} 7. Qb3 {[%clk 0:02:54.1]} 7... Nf6 {[%clk 0:02:38]} 8. Bxf7+ {[%clk
0:02:52.5]} 8... Kf8 {[%clk 0:02:39.2]} 9. Ng5 {[%clk 0:02:49.1]} 9... exd4
{[%clk 0:02:27.5]} 10. Bg6 {[%clk 0:02:30.4]} 10... d5 {[%clk 0:01:55.3]} 11.
Nf7 {[%clk 0:02:30.6]} 11... Qe8 {[%clk 0:01:55]} 12. exd5 {[%clk 0:02:19.1]}
12... hxg6 {[%clk 0:01:16.9]} 13. dxc6 {[%clk 0:02:17.4]} 13... Bd6+ {[%clk
0:01:05.4]} 14. Be3 {[%clk 0:01:59]} 14... Be6 {[%clk 0:00:37.3]} 15. Nxd6
{[%clk 0:01:47.4]} 15... cxd6 {[%clk 0:00:28.4]} 16. Qb4 {[%clk 0:01:46.5]}
16... dxe3 {[%clk 0:00:21.9]} 17. cxb7 {[%clk 0:01:46.1]} 17... Rb8 {[%clk
0:00:21.7]} 18. Qxd6+ {[%clk 0:01:45.8]} 18... Kf7 {[%clk 0:00:21.7]} 19. fxe3
{[%clk 0:01:44.5]} 19... Bc4 {[%clk 0:00:18.3]} 20. Qc7+ {[%clk 0:01:43.5]}
20... Kg8 {[%clk 0:00:18.1]} 21. Qxc4+ {[%clk 0:01:43.9]} 21... Kh7 {[%clk
0:00:16.1]} 22. O-O {[%clk 0:01:16.3]} 22... Qxe3+ {[%clk 0:00:16.3]} 23. Kh1
{[%clk 0:01:17.8]} 23... Rxb7 {[%clk 0:00:16.2]} 24. Qh4+ {[%clk 0:01:09.1]}
24... Kg8 {[%clk 0:00:16.4]} 25. Qc4+ {[%clk 0:01:08.1]} 25... Rf7 {[%clk
0:00:17.1]} 26. Na3 {[%clk 0:01:00.4]} 26... Qg3 {[%clk 0:00:17.9]} 27. Qc8+
{[%clk 0:00:44.6]} 27... Rf8 {[%clk 0:00:18.8]} 28. Qe6+ {[%clk 0:00:45.5]}
28... Rf7 {[%clk 0:00:20.1]} 29. h3 {[%clk 0:00:46.2]} 29... Qxc3 {[%clk
0:00:15.3]} 30. Rac1 {[%clk 0:00:41.7]} 30... Qxa3 {[%clk 0:00:14.3]} 31. Rc8+
{[%clk 0:00:42.8]} 31... Kh7 {[%clk 0:00:10.9]} 32. Rxh8+ {[%clk 0:00:44.7]}
32... Kxh8 {[%clk 0:00:11.6]} 33. Qxf7 {[%clk 0:00:46.6]} 33... Nh5 {[%clk
0:00:10.8]} 34. Re1 {[%clk 0:00:40.6]} 34... Ng3+ {[%clk 0:00:10.7]} 35. Kh2
{[%clk 0:00:42.1]} 35... Qd6 {[%clk 0:00:11.7]} 36. Re8+ {[%clk 0:00:42.2]}
36... Kh7 {[%clk 0:00:12.6]} 37. Qg8+ {[%clk 0:00:22.4]} 37... Kh6 {[%clk
0:00:12.8]} 38. Qe6 {[%clk 0:00:21.5]} 38... Qf4 {[%clk 0:00:11.9]} 39. Rh8+
{[%clk 0:00:21.7]} 39... Kg5 {[%clk 0:00:11.7]} 40. Qe7+ {[%clk 0:00:23.2]}
40... Kf5 {[%clk 0:00:08.4]} 41. Rf8# {[%clk 0:00:24.4]} 1-0

[Event "*** Titled Tuesday 3|2 Blitz"]
[Site "Chess.com"]
[Date "2016.02.02"]
[Round "4"]
[White "FabianEnglert"]
[Black "Quiet_Desperation"]
[Result "0-1"]
[WhiteElo "2324"]
[BlackElo "2109"]
[TimeControl "180+2"]
[EndTime "11:52:42 PST"]
[Termination "Quiet_Desperation won by resignation"]

1. Nf3 {[%clk 0:03:01]} 1... Nf6 {[%clk 0:03:00.9]} 2. g3 {[%clk 0:03:02.2]}
2... e6 {[%clk 0:03:02.5]} 3. Bg2 {[%clk 0:03:02.7]} 3... d5 {[%clk 0:03:03.1]}
4. O-O {[%clk 0:03:03.2]} 4... Be7 {[%clk 0:03:04.7]} 5. c4 {[%clk 0:03:03.1]}
5... O-O {[%clk 0:03:05.2]} 6. b3 {[%clk 0:03:04.3]} 6... c6 {[%clk 0:03:06.7]}
7. d4 {[%clk 0:03:03.6]} 7... Nbd7 {[%clk 0:03:07.8]} 8. Nc3 {[%clk 0:03:01.9]}
8... b6 {[%clk 0:03:09.2]} 9. e4 {[%clk 0:02:56.3]} 9... dxe4 {[%clk 0:03:08.1]}
10. Ng5 {[%clk 0:02:57.2]} 10... Bb7 {[%clk 0:03:07.7]} 11. Ngxe4 {[%clk
0:02:54.6]} 11... e5 {[%clk 0:03:02.7]} 12. Nxf6+ {[%clk 0:02:29.9]} 12... Bxf6
{[%clk 0:02:59.2]} 13. d5 {[%clk 0:02:30.7]} 13... c5 {[%clk 0:02:53.4]} 14. Qc2
{[%clk 0:02:17.8]} 14... g6 {[%clk 0:02:48.5]} 15. Bh6 {[%clk 0:02:16.1]} 15...
Re8 {[%clk 0:02:45.9]} 16. Ne4 {[%clk 0:02:08.9]} 16... Nf8 {[%clk 0:02:43.8]}
17. Nxf6+ {[%clk 0:01:57.2]} 17... Qxf6 {[%clk 0:02:44]} 18. Qd2 {[%clk
0:01:57.8]} 18... Nd7 {[%clk 0:02:37.7]} 19. Rae1 {[%clk 0:01:51.4]} 19... Qd6
{[%clk 0:02:30.7]} 20. h4 {[%clk 0:01:45.3]} 20... f5 {[%clk 0:02:28.2]} 21. h5
{[%clk 0:01:31.9]} 21... Nf6 {[%clk 0:02:06.9]} 22. hxg6 {[%clk 0:01:29.5]}
22... hxg6 {[%clk 0:02:07.3]} 23. Qg5 {[%clk 0:01:08.3]} 23... Kf7 {[%clk
0:02:05.8]} 24. Qc1 {[%clk 0:00:57.1]} 24... Rh8 {[%clk 0:02:03.1]} 25. Bg5
{[%clk 0:00:55.6]} 25... Rh7 {[%clk 0:01:52]} 26. Re2 {[%clk 0:00:54.2]} 26...
Rah8 {[%clk 0:01:51.5]} 27. Rfe1 {[%clk 0:00:55.5]} 27... e4 {[%clk 0:01:42.9]}
28. Bf4 {[%clk 0:00:51.6]} 28... Qf8 {[%clk 0:01:43.3]} 29. f3 {[%clk
0:00:48.5]} 29... Qg7 {[%clk 0:01:33.8]} 30. fxe4 {[%clk 0:00:45.4]} 30... Nxe4
{[%clk 0:01:35.2]} 31. Rxe4 {[%clk 0:00:29.7]} 31... fxe4 {[%clk 0:01:33.8]} 32.
Rxe4 {[%clk 0:00:31.6]} 32... Qf6 {[%clk 0:00:52.4]} 33. Qe1 {[%clk 0:00:23]}
33... g5 {[%clk 0:00:40.2]} 34. Re6 {[%clk 0:00:23.6]} 34... Qd4+ {[%clk
0:00:33.6]} 35. Be3 {[%clk 0:00:21.8]} 35... Qb2 {[%clk 0:00:28.4]} 36. Qf1+
{[%clk 0:00:22.3]} 36... Kg7 {[%clk 0:00:21.2]} 37. Re7+ {[%clk 0:00:14.3]}
37... Kg8 {[%clk 0:00:15.8]} 38. Re8+ {[%clk 0:00:14]} 38... Kg7 {[%clk
0:00:15.8]} 39. Re7+ {[%clk 0:00:10.3]} 39... Kg8 {[%clk 0:00:15.9]} 40. d6
{[%clk 0:00:10]} 40... Rh1+ {[%clk 0:00:14.9]} 0-1

[Event "*** Titled Tuesday 3|2 Blitz"]
[Site "Chess.com"]
[Date "2016.02.02"]
[Round "4"]
[White "jcibarra"]
[Black "VSERGUEI"]
[Result "0-1"]
[WhiteElo "2519"]
[BlackElo "2433"]
[TimeControl "180+2"]
[EndTime "11:52:48 PST"]
[Termination "VSERGUEI won by resignation"]

1. e4 {[%clk 0:03:00.7]} 1... e6 {[%clk 0:02:33.2]} 2. d4 {[%clk 0:03:01.1]}
2... d5 {[%clk 0:02:33]} 3. Nd2 {[%clk 0:03:02.4]} 3... Nf6 {[%clk 0:02:33.3]}
4. e5 {[%clk 0:03:03.3]} 4... Nfd7 {[%clk 0:02:34]} 5. f4 {[%clk 0:03:04.9]}
5... c5 {[%clk 0:02:35]} 6. c3 {[%clk 0:03:06.4]} 6... Nc6 {[%clk 0:02:36]} 7.
Ndf3 {[%clk 0:03:08]} 7... Qb6 {[%clk 0:02:35.8]} 8. a3 {[%clk 0:03:09.2]} 8...
c4 {[%clk 0:02:35.8]} 9. Ne2 {[%clk 0:03:04.9]} 9... Na5 {[%clk 0:02:36.2]} 10.
Rg1 {[%clk 0:02:58.3]} 10... Qb3 {[%clk 0:02:36.4]} 11. Qd2 {[%clk 0:02:58.6]}
11... Nb6 {[%clk 0:02:37.4]} 12. g4 {[%clk 0:02:58.9]} 12... h5 {[%clk
0:02:37.9]} 13. h3 {[%clk 0:02:56.8]} 13... hxg4 {[%clk 0:02:38.4]} 14. hxg4
{[%clk 0:02:57.8]} 14... Qb5 {[%clk 0:02:36.6]} 15. Qe3 {[%clk 0:02:49.3]} 15...
Nb3 {[%clk 0:02:36.2]} 16. Rb1 {[%clk 0:02:50.1]} 16... Bd7 {[%clk 0:02:35]} 17.
Ng3 {[%clk 0:02:47]} 17... O-O-O {[%clk 0:02:33.6]} 18. Be2 {[%clk 0:02:39.9]}
18... Kb8 {[%clk 0:02:33.1]} 19. Kf2 {[%clk 0:02:39.6]} 19... Ka8 {[%clk
0:02:32.9]} 20. Ng5 {[%clk 0:02:37.7]} 20... Be8 {[%clk 0:02:31.8]} 21. f5
{[%clk 0:02:38.1]} 21... Qc6 {[%clk 0:02:25.5]} 22. Qf3 {[%clk 0:02:34.2]} 22...
Nxc1 {[%clk 0:02:23.7]} 23. Rbxc1 {[%clk 0:02:34.5]} 23... Be7 {[%clk
0:02:23.9]} 24. f6 {[%clk 0:02:17.8]} 24... gxf6 {[%clk 0:02:23.8]} 25. exf6
{[%clk 0:02:19.7]} 25... Bd6 {[%clk 0:02:24.1]} 26. Rh1 {[%clk 0:02:19.2]} 26...
Rg8 {[%clk 0:02:17]} 27. Qe3 {[%clk 0:02:08.1]} 27... Na4 {[%clk 0:02:12.8]} 28.
Rb1 {[%clk 0:02:02.6]} 28... Qc7 {[%clk 0:02:06.6]} 29. Nh5 {[%clk 0:01:59.4]}
29... e5 {[%clk 0:02:06.3]} 30. Kg2 {[%clk 0:01:44.8]} 30... exd4 {[%clk
0:02:02.6]} 31. cxd4 {[%clk 0:01:46.7]} 31... Bc6 {[%clk 0:02:02.8]} 32. Nh3
{[%clk 0:01:12.1]} 32... Rde8 {[%clk 0:01:55.6]} 33. Qf2 {[%clk 0:01:12.8]}
33... c3 {[%clk 0:01:49.7]} 34. b3 {[%clk 0:01:13.6]} 34... c2 {[%clk 0:01:47]}
35. Rbc1 {[%clk 0:01:14.3]} 35... Nc3 {[%clk 0:01:47.2]} 36. Rxc2 {[%clk
0:01:13.2]} 36... Nxe2 {[%clk 0:01:47.8]} 37. Rxe2 {[%clk 0:01:13.5]} 37...
Rxg4+ {[%clk 0:01:48.7]} 38. Kf3 {[%clk 0:01:10]} 38... Rge4 {[%clk 0:01:49.2]}
39. Rhe1 {[%clk 0:01:05.8]} 39... Bxa3 {[%clk 0:01:48.4]} 40. Ng7 {[%clk
0:01:02.4]} 40... Rh8 {[%clk 0:01:43]} 41. Qg2 {[%clk 0:00:35.2]} 41... Bb4
{[%clk 0:01:38.1]} 42. Rc1 {[%clk 0:00:28.8]} 42... Rxe2 {[%clk 0:01:35.8]} 43.
Kxe2 {[%clk 0:00:29.4]} 43... Qa5 {[%clk 0:01:19.9]} 44. Rc2 {[%clk 0:00:19.4]}
44... Qa1 {[%clk 0:01:18.9]} 45. Ng5 {[%clk 0:00:16.9]} 45... Qe1+ {[%clk
0:01:14]} 46. Kf3 {[%clk 0:00:18.3]} 46... Qd1+ {[%clk 0:01:12.3]} 47. Re2
{[%clk 0:00:15.8]} 47... Qxd4 {[%clk 0:01:11.7]} 48. Qg4 {[%clk 0:00:11.4]}
48... Qxf6+ {[%clk 0:01:11.3]} 49. Nf5 {[%clk 0:00:12.6]} 49... d4+ {[%clk
0:01:09.1]} 50. Kg3 {[%clk 0:00:14]} 50... d3 {[%clk 0:01:00.6]} 51. Rf2 {[%clk
0:00:14.9]} 51... Be1 {[%clk 0:00:59.3]} 0-1